[Event "9. Korbacher Open 2017"]
[Site "Korbach"]
[Date "2017.10.21"]
[Round "4"]
[White "Li, Zhuoling"]
[Black "Bayer, Martin"]
[Result "1-0"]
[ECO "C88"]
[WhiteElo "2007"]
[BlackElo "1732"]
[Annotator "NA"]
[PlyCount "112"]
[EventDate "2017.??.??"]
[EventType "swiss"]
[EventCountry "GER"]
[SourceTitle "playchess.com"]
[Source "ChessBase"]
[SourceQuality "1"]
[TimeControl "40/5400+30:1800+30"]

{[%evp 8,92,23,18,28,34,41,29,32767,21,33,32767,20,20,39,29,46,30,22,33,38,40,38,18,28,24,20,10,48,39,50,32767,32767,18,19,32767,19,32767,5,9,15,0,38,35,36,33,27,27,37,32767,45,32767,0,32767,32767,0,0,0,0,0,0,-9,-3,-8,-8,-5,0,0,-3,0,32767,-15,-10,-412,-50,-96,-102,-88,-47,-58,0,32767,0,0,32767,0,0]} 1. e4 {[%emt 0:00:00]} e5 {[%emt 0:01:35]} 2. Nf3 {[%emt 0:01:34]} Nc6 {[%emt 0:00:17]} 3. Bb5 {[%emt 0:00:14]} a6 {[%emt 0:00:05]} 4. Ba4 {[%emt 0:00:05]} Nf6 {[%emt 0:00:15]} 5. O-O {[%emt 0:00:12]} b5 {[%emt 0:00:25]} 6. Bb3 {[%emt 0:00:07]} Be7 {[%emt 0:00:05]} 7. Re1 {[%emt 0:00:35]} d6 {[%emt 0:00:10]} 8. c3 {[%emt 0:00:44]} Na5 {[%emt 0:00:17]} 9. Bc2 {[%emt 0:00:26]} c5 {[%emt 0:00:13] LiveBook: 169 Games} 10. d4 {[%emt 0:02:10]} cxd4 {[%emt 0:00:58]} 11. cxd4 {[%emt 0:00:09]} Qc7 {[%emt 0:00:10]} 12. h3 {[%emt 0:05:53]} O-O {[%emt 0:00:29]} 13. Nc3 {[%emt 0:03:40]} Bb7 {[%emt 0:00:50]} 14. Bd3 {[%emt 0:11:44] C96: Closed Ruy Lopez: Chigorin Defence: 11 d4, replies other than 11...Qc7} (14. d5 Nc4 15. Ne2 Nd7 16. Ng3 Rfc8 17. Re2 g6 18. b3 Ncb6 19. Ne1 a5 20. Bd3 b4 21. Be3 Qd8 {½-½ (81) Sengupta,D (2571)-Yilmaz,M (2570) Iasi 2015}) 14... Rfc8 $146 {[%emt 0:01:15]} ({Predecessor:} 14... Rac8 15. d5 Nd7 16. Ne2 f5 17. exf5 Bxd5 18. Nc3 Bb7 19. Be4 Bxe4 20. Nxe4 Nb6 21. Bg5 d5 22. Bxe7 Qxe7 {1-0 (45) Jaederholm,B (2461)-Leite,D (2412) ICCF email 2008}) 15. Bg5 {[%emt 0:01:42]} h6 {[%emt 0:04:55]} 16. Bh4 {[%emt 0:03:03]} Nc4 {[%emt 0:19:30]} 17. Bxc4 {[%emt 0:01:38]} bxc4 {[%emt 0:15:31]} 18. Bg3 {[%emt 0:02:00]} Nd7 {[%emt 0:06:34]} 19. dxe5 {[%emt 0:14:26]} Nxe5 {[%emt 0:05:24]} 20. Nxe5 {[%emt 0:01:58]} dxe5 {[%emt 0:00:10]} 21. Nd5 {[%emt 0:02:58]} Qd6 {[%emt 0:02:28]} 22. Qh5 {[%emt 0:02:06]} f6 {[%emt 0:03:39]} 23. Rad1 {[%emt 0:02:26]} Qe6 {[%emt 0:05:20]} 24. f4 {[%emt 0:12:51]} Rc5 {[%emt 0:15:02]} 25. fxe5 {[%emt 0:10:23]} Bxd5 {[%emt 0:01:12]} 26. exd5 {[%emt 0:01:06]} Rxd5 {[%emt 0:00:34]} 27. Rxd5 {[%emt 0:02:27]} Qxd5 {[%emt 0:00:22]} 28. Qg4 {[%emt 0:00:58]} Rd8 {[%emt 0:04:03]} 29. Rc1 {[%emt 0:02:59]} Qd4+ {[%emt 0:02:06]} 30. Qxd4 {[%emt 0:04:28]} Rxd4 {[%emt 0:00:10]} 31. Kf1 {[%emt 0:02:26]} Kf7 {[%emt 0:01:38]} 32. exf6 {[%emt 0:01:18]} Bxf6 {[%emt 0:00:39]} 33. Ke2 Ke6 {[%emt 0:00:36]} 34. Rc2 {[%emt 0:02:56]} Kd5 {[%emt 0:00:44]} 35. Bf2 {[%emt 0:00:55]} Rd3 {[%emt 0:01:41]} 36. Be1 {[%emt 0:00:45]} g6 {[%emt 0:03:23]} 37. Bf2 {[%emt 0:00:44]} Be5 {[%emt 0:02:40]} 38. b3 {[%emt 0:02:53]} Rc3 {[%emt 0:02:19]} 39. Rd2+ {[%emt 0:00:21]} Ke4 {[%emt 0:00:14]} 40. b4 $2 (40. bxc4 $11 {and White has nothing to worry.} Rxc4 41. Rd3) 40... Rd3 {[%emt 0:31:29]} (40... Rc1 $19 41. Be3 Rb1 42. Bxh6 c3) 41. Rxd3 {[%emt 0:32:39]} cxd3+ {[%emt 0:00:02]} 42. Kd2 {[%emt 0:00:26]} Bf4+ {[%emt 0:00:00]} 43. Kc3 {[%emt 0:00:00]} d2 {[%emt 0:00:00]} 44. Kc2 {[%emt 0:00:00]} Kd5 {[%emt 0:00:00]} 45. g3 {[%emt 0:00:00]} Bd6 {[%emt 0:00:00]} 46. a3 {[%emt 0:00:00]} Kc4 $11 {[%emt 0:00:00]} 47. Kxd2 {[%emt 0:00:00]} Kb3 {[%emt 0:00:00]} 48. Kd3 {[%emt 0:00:00]} Kxa3 {[%emt 0:00:00]} 49. Bc5 Bxg3 {[%emt 0:00:00]} 50. b5+ {[%emt 0:00:00]} Kb3 {[%emt 0:00:00]} 51. bxa6 {[%emt 0:00:00]} Bb8 {[%emt 0:00:00]} 52. a7 {[%emt 0:00:00]} Bxa7 {[%emt 0:00:00]} 53. Bxa7 {[%emt 0:00:00]} g5 {[%emt 0:00:00]} 54. Be3 {[%emt 0:00:00]} Kb4 {[%emt 0:00:00]} 55. Ke4 {[%emt 0:00:00]} Kc4 {[%emt 0:00:00]} 56. Kf5 {[%emt 0:00:00]} Kd5 {[%emt 0:00:00] Ke4+} 1-0

[Event "9. Korbacher Open 2017"]
[Site "Korbach"]
[Date "2017.10.21"]
[Round "4"]
[White "Maar, Samuel"]
[Black "Ohst, Holger"]
[Result "1-0"]
[ECO "B40"]
[WhiteElo "1998"]
[BlackElo "1986"]
[Annotator "NA"]
[PlyCount "145"]
[EventDate "2017.??.??"]
[EventType "swiss"]
[EventCountry "GER"]
[SourceTitle "playchess.com"]
[Source "ChessBase"]
[SourceQuality "1"]
[TimeControl "40/5400+30:1800+30"]

1. e4 {[%emt 0:00:00]} c5 {[%emt 0:00:08]} 2. Nf3 {[%emt 0:00:00]} e6 {[%emt 0:00:07]} 3. d4 {[%emt 0:00:00]} cxd4 {[%emt 0:00:07]} 4. Nxd4 {[%emt 0:00:00]} Nf6 {[%emt 0:00:07]} 5. Nc3 {[%emt 0:00:48]} Nc6 {[%emt 0:00:02]} 6. a3 {[%emt 0:00:57]} d5 {[%emt 0:08:12]} 7. exd5 {[%emt 0:03:13] LiveBook: 11 Games B45: Sicilian Four Knights} (7. Bb5 Bd7 8. exd5 exd5 9. O-O Be7 10. Re1 O-O 11. Bg5 Re8 12. Qd3 h6 13. Bh4 Rc8 14. Rad1 Nxd4 15. Bxd7 Nxd7 16. Bxe7 Rxe7 17. Qxd4 Nb6 18. b3 Qe8 19. Kf1 {1-0 (53) Navara,D (2735)-Krasenkow,M (2610) Drancy 2016}) 7... exd5 {[%emt 0:04:10]} 8. Be2 {[%emt 0:05:00]} Bc5 {[%emt 0:27:38]} 9. Be3 {[%emt 0:09:30]} Qe7 {[%emt 0:03:19]} 10. O-O {[%emt 0:05:46]} O-O {[%emt 0:01:25]} 11. Bf3 {[%emt 0:01:38]} Be6 $146 ({Predecessor:} 11... Rd8 12. Re1 Ne5 13. Bf4 Nxf3+ 14. Qxf3 Bg4 {0-1 (49) Hua,A (2005)-Todortsev,V (1910) San Francisco 2013}) 12. Re1 {[%emt 0:05:16]} Nxd4 {[%emt 0:19:54]} 13. Bxd4 {[%emt 0:00:06]} Bxd4 {[%emt 0:00:13]} 14. Qxd4 {[%emt 0:00:08]} Qd7 {[%emt 0:00:37]} 15. Rad1 {[%emt 0:07:54]} Rfd8 {[%emt 0:00:53]} 16. h3 {[%emt 0:03:04]} h6 {[%emt 0:03:52]} 17. Re2 {[%emt 0:01:49]} b6 {[%emt 0:05:23]} 18. Red2 {[%emt 0:01:46]} Rac8 {[%emt 0:01:52]} 19. Qe5 {[%emt 0:10:03]} Qc7 {[%emt 0:02:13]} 20. Qxc7 {[%emt 0:07:57]} Rxc7 {[%emt 0:00:01]} 21. Nb5 {[%emt 0:00:46]} Rcd7 {[%emt 0:03:11]} 22. Nd4 {[%emt 0:00:34]} a6 {[%emt 0:01:32]} 23. Nc6 {[%emt 0:05:11]} Rc8 {[%emt 0:00:27]} 24. Ne5 {[%emt 0:04:57]} Rdc7 {[%emt 0:00:56]} 25. c3 {[%emt 0:01:01]} a5 {[%emt 0:01:09]} 26. g4 {[%emt 0:03:25]} g5 {[%emt 0:01:18]} 27. Re1 {[%emt 0:04:51]} Kg7 {[%emt 0:00:23]} 28. Bg2 {[%emt 0:02:35]} Rh8 {[%emt 0:05:35]} 29. Nf3 {[%emt 0:04:26]} Ne4 {[%emt 0:01:29]} 30. Rdd1 {[%emt 0:01:45]} h5 {[%emt 0:04:05]} 31. Nd4 {[%emt 0:01:23]} Nc5 {[%emt 0:01:19] [#]} (31... Bc8 $14) 32. b4 {[%emt 0:01:19]} ({White should try} 32. Bxd5 $1 Bc8 33. f3) 32... Ne4 {[%emt 0:01:23]} 33. Bxe4 {[%emt 0:01:33]} dxe4 {[%emt 0:00:09]} 34. Rxe4 {[%emt 0:01:17]} Kf6 {[%emt 0:01:33]} (34... Bc8 $14) 35. Nxe6 {[%emt 0:01:54]} fxe6 {[%emt 0:00:02]} 36. Rd6 {[%emt 0:00:31]} Re8 {[%emt 0:02:46]} 37. c4 {[%emt 0:01:14]} ({Resist} 37. gxh5 $6 Rxc3 38. Re3 (38. Rxb6 axb4 39. a4 Rxh3 $16) 38... Rxe3 $16) 37... axb4 {[%emt 0:00:23]} 38. axb4 {[%emt 0:00:04]} hxg4 {[%emt 0:00:06]} 39. hxg4 {[%emt 0:00:05]} Rb7 {[%emt 0:00:46]} 40. Kg2 {[%emt 0:01:41]} Ree7 {[%emt 0:30:41]} 41. Kg3 {[%emt 0:30:41]} Kf7 {[%emt 0:00:00]} 42. Re5 {[%emt 0:00:00]} Kf6 {[%emt 0:00:00]} 43. f4 {[%emt 0:00:00]} gxf4+ {[%emt 0:00:00]} 44. Kxf4 {[%emt 0:00:00]} Re8 {[%emt 0:00:00]} 45. g5+ {[%emt 0:00:00]} Kf7 {[%emt 0:00:00]} 46. Rc6 $18 {[%emt 0:00:00]} Rbb8 {[%emt 0:00:00]} 47. Rb5 {[%emt 0:00:00]} Rec8 {[%emt 0:00:00]} 48. Rxc8 {[%emt 0:00:00]} Rxc8 {[%emt 0:00:00]} 49. Rxb6 {[%emt 0:00:00]} Rxc4+ {[%emt 0:00:00]} 50. Ke5 {[%emt 0:00:00]} Kg6 {[%emt 0:00:00]} 51. Kxe6 {[%emt 0:00:00]} Kxg5 {[%emt 0:00:00]} 52. Kd5 {[%emt 0:00:00]} Rc1 {[%emt 0:00:00]} 53. Rc6 {[%emt 0:00:00]} Rb1 {[%emt 0:00:00]} 54. Kc5 {[%emt 0:00:00]} Kf5 {[%emt 0:00:00]} 55. b5 {[%emt 0:00:00]} Ke5 {[%emt 0:00:00]} 56. Kb6 {[%emt 0:00:00]} Kd5 {[%emt 0:00:00]} 57. Ka6 {[%emt 0:00:00]} Rb2 {[%emt 0:00:00]} 58. Rc1 {[%emt 0:00:00]} Kd6 {[%emt 0:00:00]} 59. b6 {[%emt 0:00:00]} Rb3 {[%emt 0:01:13]} 60. Kb7 {[%emt 0:00:00]} Rb2 {[%emt 0:01:34]} 61. Rd1+ {[%emt 0:00:00]} Ke7 {[%emt 0:01:46]} 62. Rc1 {[%emt 0:00:00]} Kd6 {[%emt 0:00:08]} 63. Rd1+ {[%emt 0:00:00]} Ke6 {[%emt 0:01:49]} 64. Rd4 {[%emt 0:00:00]} Ke5 {[%emt 0:01:14]} 65. Rc4 {[%emt 0:00:00]} Kd6 {[%emt 0:00:15]} 66. Ra4 {[%emt 0:00:00]} Kc5 {[%emt 0:01:39]} 67. Ra5+ {[%emt 0:00:00]} Kd6 {[%emt 0:00:32]} 68. Ra6 {[%emt 0:00:29]} Kd7 {[%emt 0:01:33]} 69. Kb8 {[%emt 0:00:46]} Rb1 {[%emt 0:01:25]} 70. b7 {[%emt 0:00:19]} Rb2 {[%emt 0:00:35]} 71. Ra3 {[%emt 0:00:26]} Kc6 {[%emt 0:00:19]} 72. Ka8 {[%emt 0:00:11]} Kc7 {[%emt 0:01:27]} 73. Rc3+ {[%emt 0:00:10]} 1-0

[Event "9. Korbacher Open 2017"]
[Site "Korbach"]
[Date "2017.10.21"]
[Round "4"]
[White "Tschoepe, Nino"]
[Black "Van de Griend, Johan"]
[Result "1/2-1/2"]
[ECO "D35"]
[WhiteElo "1978"]
[BlackElo "1797"]
[Annotator "NA RC"]
[PlyCount "64"]
[EventDate "2017.??.??"]
[EventType "swiss"]
[EventCountry "GER"]
[SourceTitle "playchess.com"]
[Source "ChessBase"]
[SourceQuality "1"]
[TimeControl "40/5400+30:1800+30"]

{[%evp 8,56,14,11,32767,32767,32767,32767,32767,32767,32767,20,22,20,26,24,24,31,46,42,36,27,148,49,138,170,156,211,245,245,256,184,320,349,388,346,377,32767,32767,445,429,351,32767,32767,573,117,32767,-225,-269,-246,-259]} 1. d4 {[%emt 0:00:00]} d5 {[%emt 0:00:14]} 2. c4 {[%emt 0:00:00]} e6 {[%emt 0:00:13]} 3. Nc3 {[%emt 0:00:01]} Nf6 {[%emt 0:00:11]} 4. cxd5 {[%emt 0:00:12]} exd5 {[%emt 0:00:07]} 5. Bg5 {[%emt 0:00:11]} Be7 {[%emt 0:00:18]} 6. e3 {[%emt 0:01:09]} c6 {[%emt 0:00:15]} 7. Bd3 {[%emt 0:00:09]} Nbd7 {[%emt 0:00:21]} 8. Nge2 {[%emt 0:01:23]} O-O {[%emt 0:02:50]} 9. Qc2 {[%emt 0:06:47]} Re8 {[%emt 0:02:00]} 10. O-O {[%emt 0:02:14]} Nf8 {[%emt 0:00:24]} 11. f3 {[%emt 0:01:11]} h6 {[%emt 0:02:41]} 12. Bh4 {[%emt 0:00:15] LiveBook: 109 Partien} N6h7 {[%emt 0:03:29] D36: Queen's Gambit Declined: Exchange Variation: Main line (5 Bg5 c6 6 Qc2)} 13. Bxe7 {[%emt 0:01:40]} Qxe7 {[%emt 0:01:04]} 14. e4 {[%emt 0:00:40]} Be6 {[%emt 0:05:05] [#]} (14... dxe4 $1 $14 15. fxe4 Rd8) 15. Rae1 {[%emt 0:05:40]} (15. e5 $1 $16) 15... Rac8 $146 {[%emt 0:05:02] [#]} ({Black should play} 15... dxe4 $1 $14 16. fxe4 Nf6) ({Predecessor:} 15... Qd7 16. Na4 b6 17. b4 Qb7 18. e5 Bd7 19. f4 Rac8 20. f5 {1-0 (37) Popiol,M (1821)-Bilczewski,K (1531) Rewal 2011}) 16. e5 $1 {[%emt 0:03:35]} c5 {[%emt 0:03:07]} 17. f4 {[%emt 0:01:08]} cxd4 {[%emt 0:02:26]} (17... g6 $142) 18. Nxd4 {[%emt 0:00:10]} Qc5 {[%emt 0:00:13]} 19. Qf2 {[%emt 0:00:24]} g6 $2 {[%emt 0:06:20]} (19... Bd7 20. Ndb5 Bxb5 21. Nxb5 Qxf2+ 22. Rxf2 Red8) 20. Ncb5 {[%emt 0:03:53]} Re7 {[%emt 0:03:09]} 21. Nd6 {[%emt 0:05:00]} Rcc7 {[%emt 0:00:16]} 22. Kh1 {[%emt 0:14:20]} f5 {[%emt 0:12:33]} 23. exf6 {[%emt 0:12:54]} Nxf6 {[%emt 0:00:14]} 24. N6b5 {[%emt 0:00:33]} Rc8 {[%emt 0:06:10]} 25. f5 {[%emt 0:04:29]} gxf5 {[%emt 0:07:21]} 26. Qh4 $2 {[%emt 0:14:38]} (26. Qg3+ $18 Kh8 27. Qe5) 26... Ne4 {[%emt 0:03:10]} 27. Nxf5 $4 {[%emt 0:07:39]} ({Not} 27. Bxe4 dxe4 28. Qxh6 Qe5 $14) (27. b4 $18 {is the narrow road to win.} Qxb4 28. g4 (28. Bxe4 dxe4 29. Qxh6 Rh7 $11)) 27... Bxf5 28. Rxf5 {[#]} Nf2+ $19 29. Qxf2 Qxf2 30. Rxf2 Rxe1+ 31. Rf1 Rxf1+ 32. Bxf1 Rc7 1/2-1/2

[Event "9. Korbacher Open 2017"]
[Site "Korbach"]
[Date "2017.10.21"]
[Round "4"]
[White "Nemetz, Markus"]
[Black "Schmidt, Andre"]
[Result "0-1"]
[ECO "E84"]
[WhiteElo "1951"]
[BlackElo "2154"]
[Annotator "NA"]
[PlyCount "80"]
[EventDate "2017.??.??"]
[EventType "swiss"]
[EventCountry "GER"]
[SourceTitle "playchess.com"]
[Source "ChessBase"]
[SourceQuality "1"]
[TimeControl "40/5400+30:1800+30"]

{[%evp 8,75,57,29,32767,43,40,43,32767,17,45,27,40,37,35,33,55,41,44,0,0,-28,-29,-35,-45,-114,0,-18,0,32767,-68,-159,-147,32767,-195,-199,-203,-228,-204,-175,-183,-193,-197,-198,-191,-309,-269,-259,-285,-286,-117,32767,-117,-256,-222,32767,-233,-239,-245,32767,32767,32767,-232,-232,-164,-182,-183,-237,-205,-200]} 1. d4 {[%emt 0:00:00]} Nf6 {[%emt 0:00:20]} 2. c4 {[%emt 0:00:00]} g6 {[%emt 0:00:24]} 3. Nc3 {[%emt 0:00:00]} Bg7 {[%emt 0:00:06]} 4. e4 {[%emt 0:00:03]} d6 {[%emt 0:00:09]} 5. f3 {[%emt 0:00:06]} Nc6 {[%emt 0:00:51]} 6. Be3 {[%emt 0:00:29]} a6 {[%emt 0:01:26]} 7. Nge2 {[%emt 0:00:39]} O-O {[%emt 0:00:43]} 8. Qd2 {[%emt 0:01:01]} Rb8 {[%emt 0:00:30]} 9. Nc1 {[%emt 0:02:33]} e5 {[%emt 0:01:40]} 10. d5 {[%emt 0:00:07]} Nd4 {[%emt 0:00:36]} 11. Nb3 {[%emt 0:00:19]} c5 {[%emt 0:09:41] LiveBook: 42 Games E84: King's Indian: Sämisch Panno: 7 Nge2 a6 8 Qd2 Rb8} (11... Nxb3 12. axb3 c5 13. g4 h5 14. h3 Nh7 15. Bd3 h4 16. g5 f6 17. gxf6 Qxf6 18. Be2 b5 19. O-O-O Bd7 20. Rdg1 bxc4 21. Bxc4 Qxf3 {1-0 (44) Zhou,J (2636)-Ding,L (2654) Hefei 2011}) 12. dxc6 $1 {[%emt 0:06:49]} Nxb3 {[%emt 0:01:48]} 13. axb3 (13. c7 $5 Qxc7 14. axb3 $14) 13... bxc6 {[%emt 0:00:17]} 14. Ra3 {[%emt 0:01:51]} Re8 $146 {[%emt 0:02:45]} ({Predecessor:} 14... Bb7 15. b4 Ne8 16. Be2 Nc7 17. O-O Ne6 18. Rd1 Nd4 19. c5 Qe7 20. cxd6 Qxd6 {0-1 (50) Jayakumar,A (2090)-Kawuma,S (2187) Caleta 2010}) 15. Be2 {[%emt 0:04:51]} Bf8 {[%emt 0:02:26]} 16. O-O {[%emt 0:06:59]} (16. Ra2 $11) 16... Qc7 {[%emt 0:06:55]} ({Black should try} 16... d5 $1 $17 {[%cal Rd5d4]} 17. cxd5 Bxa3 18. bxa3 cxd5 19. Nxd5 Nxd5 20. exd5 Rxb3) 17. c5 {[%emt 0:09:15]} Nd7 {[%emt 0:16:12]} 18. Bc4 {[%emt 0:23:05]} Nxc5 {[%emt 0:03:53]} 19. f4 {[%emt 0:07:15]} (19. Bxc5 $142 dxc5 20. Rd1) 19... exf4 {[%emt 0:04:51]} 20. Rxf4 {[%emt 0:03:24] [#]} Be6 $1 {[%emt 0:05:41]} 21. Bxe6 {[%emt 0:03:34]} Nxe6 {[%emt 0:00:33]} 22. Rf2 {[%emt 0:00:51]} Bg7 {[%emt 0:01:55]} 23. b4 {[%emt 0:06:51]} Qb7 {[%emt 0:10:25]} 24. Qxd6 {[%emt 0:03:38]} Rbd8 {[%emt 0:01:24]} ({Don't play} 24... Qxb4 25. Qxc6 Rec8 26. Qd7 $17) 25. Qg3 {[%emt 0:00:22]} Rd3 {[%emt 0:02:24]} ({But not} 25... Qxb4 26. Qf3 $17) 26. Ne2 {[%emt 0:02:10]} (26. Ra1 $142) 26... Red8 {[%emt 0:03:14]} 27. Rxd3 {[%emt 0:00:57]} Rxd3 {[%emt 0:01:49]} 28. Nf4 {[%emt 0:01:29]} Rd1+ {[%emt 0:02:34]} (28... Be5 $19 {has better winning chances.} 29. Nxd3 Bxg3 30. hxg3 c5 31. Bxc5 Qxe4) 29. Rf1 {[%emt 0:00:07] [#]} Rxf1+ {[%emt 0:02:39]} (29... Nxf4 $1 $19 {[%mdl 512] is more deadly.} 30. Qxf4 (30. Bxf4 Bd4+) 30... Rxf1+ 31. Kxf1 Qxb4) 30. Kxf1 {[%emt 0:00:01]} Be5 {[%emt 0:01:16]} ({Don't do} 30... Qxb4 31. Nxe6 fxe6 32. Qg4 $19) 31. Qf3 {[%emt 0:01:19]} Qb5+ {[%emt 0:01:03]} ({Weaker is} 31... Bxb2 32. Nxe6 fxe6 33. Qg4 $17) 32. Kf2 {[%emt 0:00:39]} Ng5 {[%emt 0:06:03]} 33. Qd1 {[%emt 0:01:38]} Nxe4+ {[%emt 0:01:03]} 34. Kg1 {[%emt 0:00:07]} Qb8 {[%emt 0:01:30]} 35. g3 {[%emt 0:00:37]} Qd6 {[%emt 0:02:11]} ({Resist} 35... Bxb2 36. Qd7) 36. Qc2 {[%emt 0:00:49]} Nf6 {[%emt 0:02:10]} 37. Kg2 {[%emt 0:03:03]} (37. Bc5 {is a better defense.} Bd4+ 38. Kf1 Bxc5 39. bxc5) 37... Bxf4 $19 {[%emt 0:01:04]} 38. Bxf4 {[%emt 0:00:21]} Qd5+ {[%emt 0:00:23]} 39. Kg1 {[%emt 0:00:40]} Qd4+ {[%emt 0:01:31]} 40. Kg2 {[%emt 0:00:27]} Qe4+ 0-1

[Event "9. Korbacher Open 2017"]
[Site "Korbach"]
[Date "2017.10.21"]
[Round "4"]
[White "Goetz, Jan"]
[Black "Braun, Ingram"]
[Result "0-1"]
[ECO "A43"]
[WhiteElo "1890"]
[BlackElo "2042"]
[Annotator "NA"]
[PlyCount "106"]
[EventDate "2017.??.??"]
[EventType "swiss"]
[EventCountry "GER"]
[SourceTitle "playchess.com"]
[Source "ChessBase"]
[SourceQuality "1"]
[TimeControl "40/5400+30:1800+30"]

{[%evp 8,87,68,67,70,52,76,64,63,39,32767,29,79,27,50,-6,-9,32,105,116,107,117,32767,105,196,156,145,79,32767,32767,90,103,114,32767,122,95,86,98,95,58,55,44,56,32767,35,31,38,32767,39,0,28,-60,20,14,28,14,46,22,16,32767,32767,32767,0,0,0,0,-11,-33,32767,-267,32767,32767,32767,32767,32767,32767,32767,-277,0,-358,32767,-458]} 1. d4 {[%emt 0:00:00]} c5 {[%emt 0:00:01]} 2. d5 {[%emt 0:00:00]} d6 {[%emt 0:00:10]} 3. e4 {[%emt 0:00:00]} g6 {[%emt 0:00:05]} 4. c4 {[%emt 0:00:00]} Bg7 {[%emt 0:00:12]} 5. Nc3 {[%emt 0:00:00]} e6 {[%emt 0:00:17]} 6. Nf3 {[%emt 0:04:53]} Ne7 {[%emt 0:00:09]} 7. Bf4 {[%emt 0:01:47] A43: Schmid Benoni} (7. h4 h6 8. Be3 a6 9. a4 exd5 10. cxd5 Bg4 11. Be2 f5 12. Ng1 Qb6 13. Qc2 O-O 14. Bxg4 fxg4 {½-½ (40) Deac,B (2572)-Svidler,P (2748) Caleta 2017}) 7... e5 {[%emt 0:12:43] LiveBook: 9 Games} 8. Be3 {[%emt 0:01:54]} O-O {[%emt 0:00:25]} 9. Be2 {[%emt 0:01:12]} a6 {[%emt 0:02:38]} 10. Qd2 $146 {[%emt 0:00:40]} ({Predecessor:} 10. Nd2 f5 11. f3 Nd7 12. O-O Nf6 13. a3 f4 14. Bf2 g5 15. b4 b6 16. bxc5 bxc5 {0-1 (62) Vasilyev,V (2280)-Tillyaev,U (2404) Moscow 2015}) 10... Nd7 {[%emt 0:02:50]} 11. Bh6 {[%emt 0:01:52]} (11. g4 $14) 11... f5 {[%emt 0:08:39]} 12. h4 {[%emt 0:08:23]} f4 {[%emt 0:04:44]} (12... Nf6 $11 {remains equal.}) 13. Bxg7 {[%emt 0:02:24]} Kxg7 {[%emt 0:00:01]} 14. h5 {[%emt 0:00:12]} Nf6 {[%emt 0:01:30]} 15. hxg6 {[%emt 0:02:41]} hxg6 {[%emt 0:03:11]} (15... Nxg6 $16 16. O-O-O Ng4) 16. O-O-O {[%emt 0:04:17]} Ng4 {[%emt 0:05:49]} 17. Rdf1 {[%emt 0:11:19]} Ng8 {[%emt 0:15:23]} 18. Nh2 {[%emt 0:04:33]} N4h6 {[%emt 0:04:25]} 19. Rfg1 {[%emt 0:02:49]} Bd7 {[%emt 0:03:22]} 20. g3 {[%emt 0:02:56]} Qf6 {[%emt 0:08:37]} 21. Nf3 {[%emt 0:13:07]} fxg3 {[%emt 0:13:38]} 22. Rxg3 {[%emt 0:00:06]} (22. fxg3 $142 Nf7 23. b3) 22... Qf4 {[%emt 0:00:12]} 23. Rhg1 {[%emt 0:02:15]} Ne7 {[%emt 0:00:47]} 24. R1g2 {[%emt 0:06:40]} Rf6 {[%emt 0:03:07]} 25. Ng5 {[%emt 0:11:06]} Qxd2+ {[%emt 0:00:57]} 26. Kxd2 {[%emt 0:01:49]} Nf7 {[%emt 0:02:11]} 27. Nf3 {[%emt 0:06:38]} Rh8 {[%emt 0:00:23]} 28. Nh2 {[%emt 0:00:44]} Bh3 {[%emt 0:01:21]} 29. Ng4 {[%emt 0:02:27]} (29. Rg1 $11) 29... Bxg2 {[%emt 0:00:51]} (29... Rf4 $15 30. Rh2 Bxg4 31. Rxh8 Kxh8 32. Rxg4 Rxf2) 30. Nxf6 {[%emt 0:00:01]} Kxf6 {[%emt 0:00:11]} 31. Rxg2 {[%emt 0:00:02]} g5 {[%emt 0:02:50]} 32. Bg4 {[%emt 0:01:20]} Ng6 {[%emt 0:00:39]} 33. Na4 {[%emt 0:02:25]} Nf4 {[%emt 0:01:39]} 34. Rg1 {[%emt 0:00:01]} b5 {[%emt 0:01:09]} 35. cxb5 {[%emt 0:02:20]} axb5 {[%emt 0:00:01]} 36. Nc3 {[%emt 0:00:01]} b4 {[%emt 0:00:34]} 37. Ne2 {[%emt 0:02:19]} Ra8 {[%emt 0:01:33]} 38. Nxf4 $2 {[%emt 0:01:34]} (38. Ra1 $11 {and White stays safe.}) 38... exf4 {[%emt 0:00:08]} 39. Ra1 {[%emt 0:00:03]} Ne5 {[%emt 0:00:30]} 40. Bf5 {[%emt 0:01:36]} Ra7 {[%emt 0:31:02]} 41. Kc2 $1 {[%emt 0:31:15]} Nf3 {[%emt 0:01:25]} 42. Kd3 {[%emt 0:00:00] [#]} Ne5+ $2 {[%emt 0:00:00]} (42... g4 $1 $19 {[%mdl 512]} 43. Rh1 (43. Bxg4 Ne5+) 43... Ne5+ 44. Kc2 Rxa2) 43. Kc2 {[%emt 0:00:00]} c4 {[%emt 0:00:00]} 44. a4 $19 {[%emt 0:00:00]} Nf3 {[%emt 0:00:00]} 45. Bg4 {[%emt 0:00:00]} Nd4+ {[%emt 0:00:00]} 46. Kd1 {[%emt 0:00:00]} Ke5 {[%emt 0:00:00]} 47. f3 {[%emt 0:00:00]} Rh7 {[%emt 0:00:00]} 48. Ra2 {[%emt 0:00:00]} Rh1+ {[%emt 0:00:00]} 49. Kd2 {[%emt 0:00:00]} Nb3+ {[%emt 0:00:00]} 50. Ke2 {[%emt 0:00:00]} Nc1+ {[%emt 0:00:00]} 51. Kd2 {[%emt 0:00:00]} Nxa2 {[%emt 0:00:00]} 52. a5 {[%emt 0:00:00]} Rh2+ {[%emt 0:00:00]} 53. Ke1 {[%emt 0:00:00]} c3 {[%emt 0:00:00]} 0-1